bitfinex/quotes_BTCUSD_20240818
["timestamp","ask_amount","ask_price","bid_price","bid_amount"]
[1723992163829,0.00021065,59941.0,59940.0,1.25795576]
[1723992164156,0.00021065,59941.0,59940.0,1.2579412]
[1723992165563,0.00021065,59941.0,59940.0,1.23741094]
[1723992165742,0.00021065,59941.0,59940.0,1.25793985]
[1723992166170,0.00021065,59941.0,59940.0,1.2671314]
[1723992167486,0.00021065,59941.0,59940.0,1.25793985]
[1723992167684,0.00021065,59941.0,59940.0,1.2115332]
[1723992167885,0.00021065,59941.0,59940.0,1.2579399]
[1723992168265,0.00021065,59941.0,59940.0,1.23741047]
[1723992168468,0.00021065,59941.0,59940.0,1.26713141]
[1723992169114,0.00021065,59941.0,59940.0,1.25793984]
[1723992169317,0.00021065,59941.0,59940.0,1.26713141]
[1723992169494,0.00021065,59941.0,59940.0,1.25793984]
[1723992171146,0.00021065,59941.0,59940.0,1.26713142]
[1723992171834,0.00021065,59941.0,59940.0,1.26713143]
[1723992172017,0.00021065,59941.0,59940.0,1.25793985]
[1723992173197,0.00021065,59941.0,59940.0,1.26713143]
[1723992173399,0.00021065,59941.0,59940.0,1.26712972]
[1723992175762,0.00021065,59941.0,59940.0,1.25793814]
[1723992176213,0.00021065,59941.0,59940.0,1.25793833]
[1723992180049,0.00021065,59941.0,59940.0,1.21153149]
[1723992180256,0.00021065,59941.0,59940.0,1.25793841]
[1723992180458,0.00021065,59941.0,59940.0,1.21153149]
[1723992180661,0.00021065,59941.0,59940.0,1.25793841]
[1723992183255,0.48071065,59941.0,59940.0,0.76780641]
[1723992183456,0.48071065,59941.0,59940.0,0.86718348]
[1723992183670,0.48071065,59941.0,59940.0,0.84213312]
[1723992184420,0.48071065,59941.0,59940.0,0.86718348]
[1723992184855,0.00021065,59941.0,59940.0,0.86718348]
[1723992190185,0.00021065,59941.0,59940.0,0.86717646]
[1723992191032,0.00021065,59941.0,59940.0,0.74195506]
[1723992191324,0.00021065,59941.0,59940.0,0.9135096]
[1723992191542,0.00021065,59941.0,59940.0,2.43705915]
[1723992191757,1e-08,59941.0,59940.0,4.17262515]
[1723992191962,1e-08,59941.0,59940.0,4.11697259]
[1723992192166,1e-08,59941.0,59940.0,4.23000428]
[1723992192371,1e-08,59941.0,59940.0,4.21413253]
[1723992192609,1e-08,59941.0,59940.0,2.71413253]
[1723992192783,1e-08,59941.0,59940.0,2.67261096]
[1723992194160,1e-08,59941.0,59940.0,3.01035499]
[1723992194372,1e-08,59941.0,59940.0,3.01017979]
[1723992194568,1e-08,59941.0,59940.0,2.73000343]
[1723992195363,1e-08,59941.0,59940.0,2.70946807]
[1723992195605,1e-08,59941.0,59940.0,2.72998884]
[1723992196212,1e-08,59941.0,59940.0,2.68847274]
[1723992196629,1e-08,59941.0,59940.0,2.72998884]
[1723992197281,1e-08,59941.0,59940.0,2.68847274]
[1723992197880,1e-08,59941.0,59940.0,4.18847274]
[1723992198093,1e-08,59941.0,59940.0,4.22998884]
[1723992198299,1e-08,59941.0,59940.0,4.51001232]
[1723992198470,1e-08,59941.0,59940.0,4.28846052]
[1723992199295,1e-08,59941.0,59940.0,4.28827688]
[1723992199503,1e-08,59941.0,59940.0,4.50980048]
[1723992200977,1e-08,59941.0,59940.0,4.21393583]
[1723992201184,1e-08,59941.0,59940.0,4.45133237]
[1723992201418,1e-08,59941.0,59940.0,4.22980876]
[1723992202677,1e-08,59941.0,59940.0,4.60980405]
[1723992203293,1e-08,59941.0,59940.0,4.84337005]
[1723992203495,0.000825,59948.0,59947.0,1.136825]
[1723992203699,0.000825,59948.0,59947.0,2.19247875]
[1723992203904,0.000825,59952.0,59951.0,1.289382]
[1723992204139,0.000825,59952.0,59951.0,3.07903131]
[1723992204347,0.000825,59952.0,59951.0,4.63642423]
[1723992204549,0.2921,59971.0,59952.0,1.75586]
[1723992204757,0.2921,59971.0,59952.0,2.82185664]
[1723992205417,0.2921,59971.0,59952.0,3.0429297]
[1723992205823,0.196,59973.0,59952.0,2.82185664]
[1723992206034,0.4881,59973.0,59952.0,2.82185664]
[1723992206240,0.4881,59973.0,59952.0,2.88027988]
[1723992206415,0.4881,59973.0,59952.0,3.10122754]
[1723992206703,0.4881,59973.0,59965.0,0.584672]
[1723992206915,0.4797535,59982.0,59965.0,0.07039865]
[1723992206916,0.5881,59966.0,59965.0,0.07039865]
[1723992207118,0.5881,59966.0,59965.0,0.116734]
[1723992207333,0.5881,59966.0,59964.0,0.116736]
[1723992208895,0.5881,59966.0,59965.0,0.116734]
[1723992209301,0.5881,59966.0,59963.0,0.314376]
[1723992209751,0.5881,59966.0,59965.0,0.116734]
[1723992210880,0.3921,59966.0,59965.0,0.350203]
[1723992211109,0.3921,59966.0,59965.0,0.583672]
[1723992211816,0.38938282,59966.0,59965.0,0.583672]
[1723992212235,0.09728282,59966.0,59965.0,0.75522654]
[1723992212437,0.09728282,59966.0,59965.0,0.98969554]
[1723992212646,0.09728282,59966.0,59965.0,1.38419554]
[1723992214763,0.09728282,59966.0,59965.0,1.19179554]
[1723992214972,0.09728282,59966.0,59965.0,0.583672]
[1723992215591,0.09728282,59966.0,59965.0,0.98869554]
[1723992215791,0.09728282,59966.0,59965.0,0.98969554]
[1723992215991,0.09728282,59966.0,59965.0,1.28689554]
[1723992216394,0.09728282,59966.0,59965.0,1.48899554]
[1723992216576,0.09728282,59966.0,59965.0,1.68139554]
[1723992217846,0.09728282,59966.0,59965.0,1.68230304]
[1723992218055,0.09810782,59966.0,59965.0,1.68230304]
[1723992218427,0.09810782,59966.0,59965.0,1.70280705]
[1723992218627,0.000825,59966.0,59965.0,1.70280705]
[1723992218898,0.000825,59966.0,59965.0,1.72580705]
[1723992219314,0.000825,59966.0,59965.0,2.34241746]
[1723992219486,0.000825,59966.0,59965.0,2.48067052]
[1723992219685,0.000825,59966.0,59965.0,2.51475721]
[1723992219889,0.1,59968.0,59965.0,2.51475721]
[1723992219890,0.02844956,59968.0,59967.0,1.050574]
[1723992220090,0.02844956,59968.0,59967.0,2.42706797]
[1723992220377,0.02844956,59968.0,59967.0,2.42306797]
[1723992220582,0.02844956,59968.0,59967.0,2.65652897]
[1723992220785,0.02844956,59968.0,59967.0,2.82184176]
[1723992220989,0.02844956,59968.0,59967.0,2.82151087]
[1723992221412,0.02844956,59968.0,59967.0,2.67237838]
[1723992221621,0.00825,59978.0,59977.0,0.4765]
[1723992221829,0.2785,59995.0,59978.0,0.835827]
[1723992222029,0.2785,59995.0,59978.0,1.88620821]
[1723992222235,0.2785,59995.0,59978.0,2.32669801]
[1723992222384,0.2785,59995.0,59978.0,1.87303209]
[1723992222586,0.2785,59995.0,59978.0,1.87703209]
[1723992222843,0.2785,59995.0,59978.0,2.07910174]
[1723992223052,0.1986,59999.0,59978.0,3.58310174]
[1723992223053,0.2785,59998.0,59978.0,3.58310174]
[1723992223256,0.2785,59998.0,59978.0,3.59365463]
[1723992223384,0.2785,59998.0,59978.0,3.57389247]
[1723992223588,0.2785,59998.0,59978.0,3.81647972]
[1723992224324,0.2785,59998.0,59978.0,3.88183351]
[1723992224527,0.2785,59998.0,59978.0,4.26082795]
[1723992224752,0.0002,59999.0,59978.0,4.18630491]
[1723992225313,0.0002,59999.0,59978.0,4.26070029]
[1723992225534,0.0002,59999.0,59978.0,4.1863009]
[1723992225761,0.0002,59999.0,59986.0,1.252141]
[1723992225960,0.0002,59999.0,59986.0,2.04387714]
[1723992226368,0.0002,59999.0,59986.0,3.54387714]
[1723992226544,0.0002,59999.0,59986.0,3.54787714]
[1723992227207,0.2785,59994.0,59986.0,2.04387714]
[1723992227466,0.2785,59998.0,59986.0,2.04787714]
[1723992231166,0.2785,59998.0,59986.0,2.04387714]
[1723992231596,0.2785,59998.0,59991.0,0.817788]
[1723992231826,0.2785,59998.0,59991.0,0.98934254]
[1723992232170,0.2785,59998.0,59991.0,0.99134254]
[1723992232353,0.2785,59998.0,59991.0,0.98934254]
[1723992234422,0.2785,59998.0,59991.0,0.99134254]
[1723992236074,0.2785,59998.0,59991.0,0.99334254]
[1723992236679,0.0002,59999.0,59998.0,0.583352]
[1723992236680,1e-08,59999.0,59998.0,0.583352]
[1723992236914,1e-08,59999.0,59998.0,0.75490654]
[1723992237913,1e-08,59999.0,59998.0,0.98824754]
[1723992240601,1e-08,59999.0,59998.0,1.42468854]
[1723992241018,1e-08,59999.0,59998.0,1.70898854]
[1723992241406,1e-08,59999.0,59998.0,1.93495725]
[1723992241713,1e-08,59999.0,59998.0,2.03695725]
[1723992242592,1e-08,59999.0,59998.0,2.03295725]
[1723992243286,0.00082401,59999.0,59998.0,2.03295725]
[1723992243830,0.00082401,59999.0,59998.0,2.03495725]
[1723992244309,0.00082401,59999.0,59998.0,2.27029825]
[1723992244559,0.00082401,59999.0,59998.0,2.37963536]
[1723992244835,0.00082401,59999.0,59998.0,2.67501359]
[1723992245064,0.00082401,59999.0,59998.0,2.44167259]
[1723992245300,0.00082401,59999.0,59998.0,2.67501359]
[1723992246245,0.00082401,59999.0,59998.0,2.54065684]
[1723992246511,0.00082401,59999.0,59998.0,2.54065626]
[1723992246767,0.1831,60020.0,59998.0,2.54065626]
[1723992246768,0.1831,60020.0,60012.0,1.113201]
[1723992247020,0.1831,60020.0,60012.0,1.50732425]
[1723992247273,0.1831,60020.0,60012.0,1.50932425]
[1723992247516,0.1831,60020.0,60012.0,1.21162425]
[1723992248240,0.1831,60020.0,60012.0,1.44491025]
[1723992248532,0.44334,60013.0,60012.0,0.77523825]
[1723992248763,0.44334,60013.0,59998.0,0.3187]
[1723992248764,0.252,60011.0,60002.0,0.116662]
[1723992249004,0.252,60011.0,60003.0,0.17588738]
[1723992249219,0.252,60011.0,60010.0,0.116647]
[1723992250117,0.252,60011.0,60003.0,0.17255454]
[1723992250322,0.252,60011.0,60009.0,0.116648]
[1723992250524,0.252,60011.0,60010.0,0.116647]
[1723992251999,0.252,60011.0,60007.0,0.40485854]
[1723992252000,0.252,60011.0,60009.0,0.116648]
[1723992252215,0.252,60011.0,60007.0,0.17155454]
[1723992252439,0.252,60011.0,60007.0,0.28820754]
[1723992252849,0.252,60011.0,60003.0,0.23332]
[1723992253061,0.252,60011.0,60006.0,0.116654]
[1723992253396,0.252,60011.0,60006.0,0.17155454]
[1723992253593,0.252,60011.0,60008.0,0.116649]
[1723992253795,0.252,60011.0,60007.0,0.233304]
[1723992253998,0.252,60011.0,60008.0,0.11665]
[1723992254204,0.252,60011.0,60009.0,0.17155454]
[1723992254411,0.252,60011.0,60010.0,0.116647]
[1723992254644,0.252,60011.0,60010.0,0.349941]
[1723992255955,0.252824,60011.0,60010.0,0.349941]
[1723992257540,0.252824,60011.0,60010.0,0.583235]
[1723992258207,0.252824,60011.0,60010.0,0.349941]
[1723992259024,0.000824,60011.0,60010.0,0.349941]
[1723992260272,0.000824,60011.0,60010.0,0.583235]
[1723992260901,0.000824,60011.0,60010.0,0.75478954]
[1723992263223,0.000824,60011.0,60010.0,0.52149554]
[1723992268195,0.259824,60011.0,60010.0,0.52149554]
[1723992270843,0.259824,60011.0,60006.0,0.0497731]
[1723992270844,0.259824,60011.0,60006.0,0.233309]
[1723992271051,0.259824,60011.0,60007.0,0.233304]
[1723992271259,0.259824,60011.0,60008.0,0.233302]
[1723992271464,0.259824,60011.0,60009.0,0.116649]
[1723992271866,0.259824,60011.0,60007.0,0.04982462]
[1723992272068,0.259824,60011.0,60009.0,0.116648]
[1723992272069,0.000824,60011.0,60009.0,0.116648]
[1723992272684,0.000824,60011.0,60010.0,1.30868954]
[1723992272887,0.000824,60011.0,60010.0,1.37898518]
[1723992273141,0.000824,60011.0,60010.0,1.22916056]
[1723992273833,0.000824,60011.0,60010.0,1.46245456]
[1723992275099,0.000824,60011.0,60010.0,1.5371915]
[1723992275606,0.000824,60011.0,60010.0,1.5381915]
[1723992275815,0.000824,60011.0,60010.0,2.06846465]
[1723992276018,0.000824,60011.0,60010.0,2.06646465]
[1723992276217,0.000824,60011.0,60010.0,2.1661087]
[1723992276420,0.000824,60011.0,60010.0,2.31306597]
[1723992276623,0.000824,60011.0,60010.0,2.31306635]
[1723992276817,0.000824,60011.0,60010.0,2.31506635]
[1723992277015,0.000824,60011.0,60010.0,2.31306635]
[1723992277222,0.000824,60011.0,60010.0,2.2134171]
[1723992277650,0.000824,60011.0,60010.0,2.22258238]
[1723992278217,0.000824,60011.0,60010.0,2.22258957]
[1723992278415,0.000824,60011.0,60010.0,2.22258977]
[1723992279457,0.000824,60011.0,60010.0,2.34715133]
[1723992279833,0.000824,60011.0,60010.0,2.22258977]
[1723992280408,0.000824,60011.0,60010.0,2.3472542]
[1723992280631,0.000824,60011.0,60010.0,2.22258799]
[1723992281298,0.000824,60011.0,60010.0,2.3512542]
[1723992281700,0.000824,60011.0,60010.0,2.3472542]
[1723992282419,0.000824,60011.0,60010.0,2.33808871]
[1723992282620,0.000824,60011.0,60010.0,2.32408871]
[1723992282815,0.000824,60011.0,60010.0,2.31008871]
[1723992283032,0.000824,60011.0,60010.0,2.01578598]
[1723992283159,0.000824,60011.0,60010.0,2.02402598]
[1723992283372,0.002824,60011.0,60010.0,2.04502598]
[1723992283765,0.001824,60011.0,60010.0,2.03202598]
[1723992283962,0.001824,60011.0,60010.0,2.04002598]
[1723992284171,0.001824,60011.0,60010.0,2.19962543]
[1723992284172,0.002824,60011.0,60010.0,2.19962543]
[1723992284379,0.001824,60011.0,60010.0,2.00098913]
[1723992284602,0.001824,60011.0,60010.0,2.0360136]
[1723992285233,0.001824,60011.0,60010.0,2.18956036]
[1723992285776,0.001824,60011.0,60010.0,2.20356036]
[1723992285979,0.00824,60013.0,60012.0,1.546687]
[1723992286180,0.00824,60013.0,60012.0,2.26639892]
[1723992286797,0.00824,60013.0,60012.0,2.41598119]
[1723992287133,0.00824,60013.0,60012.0,2.28039892]
[1723992287283,0.00824,60013.0,60012.0,2.52768492]
[1723992287737,0.00824,60013.0,60012.0,3.04522051]
[1723992287934,0.00824,60013.0,60012.0,3.03122051]
[1723992288114,0.00824,60013.0,60012.0,3.04522051]
[1723992288290,0.00824,60013.0,60012.0,2.9897314]
[1723992288496,0.00824,60013.0,60012.0,3.19473724]
[1723992288697,0.00824,60013.0,60012.0,2.67720165]
[1723992289202,0.00824,60013.0,60012.0,2.68120165]
[1723992289410,0.00824,60013.0,60012.0,2.53167976]
[1723992289621,0.00824,60013.0,60012.0,2.51766183]
[1723992290220,0.00824,60013.0,60012.0,2.53166183]
[1723992291244,0.00824,60013.0,60012.0,2.29437583]
[1723992291443,0.00824,60013.0,60012.0,2.44582028]
[1723992292107,0.00824,60013.0,60012.0,2.29837583]
[1723992292927,0.00824,60013.0,60012.0,2.81588631]
[1723992293078,0.00824,60013.0,60012.0,2.29837583]
[1723992293280,0.00824,60013.0,60012.0,2.81588631]
[1723992293505,0.00824,60013.0,60012.0,2.29837583]
[1723992293700,0.00824,60013.0,60012.0,2.81588631]
[1723992293927,0.00824,60013.0,60012.0,2.29837583]
[1723992294130,0.00824,60013.0,60012.0,2.81186806]
[1723992294330,0.00824,60013.0,60012.0,2.29836823]
[1723992294758,0.00824,60013.0,60012.0,2.29436823]
[1723992294962,0.00824,60013.0,60012.0,2.29636823]
[1723992295976,0.274022,60025.0,60018.0,0.81742]
[1723992296127,0.274022,60025.0,60018.0,1.37908227]
[1723992296552,0.011922,60025.0,60018.0,2.09214527]
[1723992296755,0.011922,60025.0,60018.0,2.09414527]
[1723992296950,0.011922,60025.0,60018.0,2.19414527]
[1723992297303,0.011922,60025.0,60018.0,2.22614527]
[1723992297679,0.011922,60025.0,60018.0,2.24014527]
[1723992298511,0.011922,60025.0,60018.0,2.32084527]
[1723992298669,0.011922,60025.0,60018.0,2.3466776]
[1723992300537,0.011922,60025.0,60018.0,2.35383097]
[1723992300739,0.011922,60025.0,60018.0,2.35381315]
[1723992300941,0.011922,60025.0,60024.0,0.81734]
[1723992301139,0.011922,60025.0,60024.0,1.53430484]
[1723992302153,0.011922,60025.0,60024.0,1.16666402]
[1723992302322,0.011922,60025.0,60024.0,1.83079383]
[1723992302542,0.011922,60025.0,60024.0,2.02639383]
[1723992302747,0.011922,60025.0,60024.0,2.18501136]
[1723992302957,0.011922,60025.0,60024.0,2.20801136]
[1723992303159,0.011922,60025.0,60024.0,2.24499311]
[1723992303366,0.011922,60025.0,60024.0,2.34499311]
[1723992303569,0.011922,60025.0,60024.0,2.34997663]
[1723992303729,0.011922,60025.0,60024.0,2.34297663]
[1723992303935,0.011922,60025.0,60024.0,2.49222596]
[1723992304134,0.011922,60025.0,60024.0,2.35197663]
[1723992304760,0.011922,60025.0,60024.0,2.36597663]
[1723992305979,0.00824,60028.0,60027.0,0.817298]
[1723992306182,0.00824,60028.0,60027.0,1.84167343]
[1723992306432,0.00824,60028.0,60027.0,2.13825668]
[1723992306643,0.00824,60028.0,60027.0,2.13625668]
[1723992306766,0.00824,60028.0,60027.0,2.14025668]
[1723992307190,0.00824,60028.0,60027.0,2.13825668]
[1723992307391,0.00824,60028.0,60027.0,2.10328294]
[1723992307644,0.00824,60028.0,60027.0,2.15231065]
[1723992308053,0.00824,60028.0,60027.0,2.16631065]
[1723992308257,0.00824,60028.0,60027.0,2.36591065]
[1723992309409,0.00824,60028.0,60027.0,3.86591065]
[1723992309608,0.00824,60028.0,60027.0,3.86291065]
[1723992309951,0.00824,60028.0,60027.0,4.14055498]
[1723992309952,0.00324,60028.0,60027.0,4.14055498]
[1723992310362,0.00324,60028.0,60027.0,4.30521907]
[1723992310780,0.00324,60028.0,60027.0,4.82254704]
[1723992310992,0.00324,60028.0,60027.0,4.82253409]
[1723992311501,0.00324,60028.0,60027.0,4.80671379]
[1723992311734,0.00324,60028.0,60027.0,4.82251081]
[1723992312004,0.00324,60028.0,60027.0,4.80208034]
[1723992312239,0.00324,60028.0,60027.0,4.15628162]
[1723992312489,0.00324,60028.0,60027.0,4.673606]
[1723992312723,0.00324,60028.0,60027.0,4.669606]
[1723992312942,0.00324,60028.0,60027.0,4.82251183]
[1723992313164,0.00324,60028.0,60027.0,4.15228659]
[1723992313381,0.00324,60028.0,60027.0,4.14048642]
[1723992313599,0.00324,60028.0,60027.0,4.65780978]
[1723992313801,0.00324,60028.0,60027.0,4.80671561]
[1723992314233,0.00324,60028.0,60027.0,4.13648642]
[1723992314404,0.00324,60028.0,60027.0,4.65780897]
[1723992315205,0.00324,60028.0,60027.0,4.13648642]
[1723992315428,0.00324,60028.0,60027.0,4.13648584]
[1723992315625,0.00324,60028.0,60027.0,4.65380841]
[1723992316052,0.186,60045.0,60038.0,0.117592]
[1723992316261,0.186,60045.0,60038.0,0.67640859]
[1723992316465,0.186,60045.0,60038.0,1.09316271]
[1723992317086,0.186,60045.0,60038.0,1.32634771]
[1723992317291,0.186,60045.0,60038.0,1.33234771]
[1723992317699,0.186,60045.0,60038.0,1.34234771]
[1723992317912,0.186,60045.0,60038.0,1.33634771]
[1723992318120,0.186,60045.0,60038.0,1.32634771]
[1723992318330,0.00845,60059.0,60038.0,1.27031701]
[1723992318551,0.00845,60059.0,60038.0,0.39820747]
[1723992318552,0.45715,60039.0,60038.0,0.39820747]
[1723992318769,0.45715,60039.0,60038.0,0.144592]
[1723992319602,0.45715,60039.0,60038.0,0.444477]
[1723992320035,0.45715,60039.0,60038.0,0.453477]
[1723992320671,0.45715,60039.0,60038.0,0.686662]
[1723992320881,0.45715,60039.0,60038.0,0.672662]
[1723992321324,0.45715,60039.0,60038.0,0.686662]
[1723992322591,0.45715,60039.0,60038.0,0.453477]
[1723992323656,0.45715,60039.0,60038.0,0.023]
[1723992323874,0.45715,60039.0,60038.0,0.139592]
[1723992324087,0.45715,60039.0,60038.0,1.01070154]
[1723992324298,0.00845,60039.0,60038.0,1.01070154]
[1723992324509,0.00845,60039.0,60038.0,1.08083794]
[1723992324712,0.00845,60039.0,60038.0,0.84765294]
[1723992324917,0.00845,60039.0,60038.0,0.79797099]
[1723992325132,0.00845,60039.0,60038.0,1.08085943]
[1723992325394,0.00845,60039.0,60038.0,1.08185943]
[1723992325616,0.00845,60039.0,60038.0,1.94292648]
[1723992325823,0.00845,60039.0,60038.0,1.86837953]
[1723992326034,0.00845,60039.0,60038.0,1.96978641]
[1723992326236,0.00845,60039.0,60038.0,2.10156453]
[1723992326482,0.00845,60039.0,60038.0,2.25171735]
[1723992326694,0.00845,60039.0,60038.0,2.32905874]
[1723992326908,0.00845,60039.0,60038.0,2.33821203]
[1723992327114,0.1866,60047.0,60046.0,0.582885]
[1723992327323,0.1866,60047.0,60046.0,0.65302296]
[1723992327969,0.1866,60047.0,60046.0,0.88617696]
[1723992328386,0.1866,60047.0,60046.0,0.89117696]
[1723992328591,0.00825,60052.0,60051.0,0.349702]
[1723992329000,0.00825,60052.0,60051.0,0.582837]
[1723992329209,0.45785,60052.0,60051.0,0.582837]
[1723992329833,0.45785,60052.0,60051.0,0.60328171]
[1723992330036,0.45985,60052.0,60051.0,0.60328171]
[1723992330239,0.45985,60052.0,60051.0,0.582837]
[1723992331481,0.46085,60052.0,60051.0,0.582837]
[1723992332320,0.19785,60052.0,60051.0,0.60327933]
[1723992332521,0.01025,60052.0,60051.0,0.60327933]
[1723992332723,0.00825,60052.0,60051.0,0.60827933]
[1723992335876,0.00825,60052.0,60051.0,0.587837]
[1723992336073,0.00825,60052.0,60051.0,0.60828108]
[1723992336299,0.00825,60052.0,60051.0,1.01297062]
[1723992336489,0.00825,60052.0,60051.0,1.01297044]
[1723992336608,0.00825,60052.0,60051.0,1.06265943]
[1723992338305,0.46425,60052.0,60051.0,0.0254439]
[1723992338476,0.46425,60052.0,60051.0,0.005]
[1723992338477,0.57884866,60052.0,60051.0,0.005]
[1723992338676,0.67884866,60052.0,60051.0,0.005]
[1723992339631,0.193,60048.0,60038.0,0.116592]
[1723992339784,0.193,60046.0,60038.0,0.116592]
[1723992339988,0.263,60045.0,60038.0,0.116592]
[1723992340647,0.263,60045.0,60042.0,0.116585]
[1723992340832,0.263,60045.0,60041.0,0.116586]
[1723992341039,0.263,60045.0,60038.0,0.17155454]
[1723992341235,0.263,60045.0,60043.0,0.116581]
[1723992341441,0.002,60046.0,60045.0,0.116579]
[1723992341639,0.002,60046.0,60045.0,0.582895]
[1723992342210,0.20125,60052.0,60048.0,0.233145]
[1723992342436,0.20125,60052.0,60051.0,0.116567]
[1723992343438,0.20125,60052.0,60051.0,0.582837]
[1723992343439,0.00825,60052.0,60051.0,0.582837]
[1723992343637,0.00825,60052.0,60051.0,0.349702]
[1723992343842,0.00825,60052.0,60051.0,1.48082654]
[1723992344041,0.01025,60052.0,60051.0,1.48082654]
[1723992344256,0.01025,60052.0,60051.0,1.57576464]
[1723992344456,0.01025,60052.0,60051.0,1.94522759]
[1723992344656,0.01025,60052.0,60051.0,1.57576464]
[1723992344860,0.01025,60052.0,60051.0,1.94522691]
[1723992345061,0.01025,60052.0,60051.0,1.50126803]
[1723992345262,0.00825,60052.0,60051.0,1.50126803]
[1723992345513,0.00825,60052.0,60051.0,1.94522745]
[1723992345643,0.00925,60052.0,60051.0,1.94531454]
[1723992345855,0.00925,60052.0,60051.0,1.87073084]
[1723992346061,0.00825,60052.0,60051.0,1.94531482]
[1723992346260,0.00825,60052.0,60051.0,1.92487494]
[1723992346462,0.00825,60052.0,60051.0,1.93187494]
[1723992346664,0.00825,60052.0,60051.0,1.94387494]
[1723992346856,0.00825,60052.0,60051.0,1.96431633]
[1723992347065,0.00825,60052.0,60051.0,1.77351633]
[1723992347266,0.00825,60052.0,60051.0,1.69893237]
[1723992347466,0.00825,60052.0,60051.0,1.67849098]
[1723992347960,0.00825,60052.0,60051.0,1.9686198]
[1723992348203,0.00825,60052.0,60051.0,1.88973144]
[1723992348619,0.00825,60052.0,60051.0,1.79840959]
[1723992348983,0.00825,60052.0,60051.0,1.49591208]
[1723992349182,0.00825,60052.0,60051.0,1.39643393]
[1723992349331,0.00825,60052.0,60051.0,1.49592687]
[1723992349560,0.00825,60052.0,60051.0,1.37599098]
[1723992350427,0.00825,60052.0,60051.0,0.73816644]
[1723992350620,0.00825,60052.0,60051.0,0.81279257]
[1723992350832,0.00825,60052.0,60051.0,0.368702]
[1723992351015,0.00825,60052.0,60051.0,0.41846088]
[1723992351371,0.00825,60052.0,60051.0,0.601837]
[1723992351603,0.00825,60052.0,60051.0,0.41846271]
[1723992351772,0.00825,60052.0,60051.0,0.368702]
[1723992351973,0.27125,60052.0,60051.0,0.019]
[1723992354424,0.00825,60052.0,60051.0,0.019]
[1723992355052,0.46195,60052.0,60051.0,0.019]
[1723992363396,0.19925,60052.0,60051.0,0.019]
[1723992363804,0.00825,60052.0,60051.0,0.368702]
[1723992364000,0.00325,60052.0,60051.0,0.601837]
[1723992365612,0.00325,60052.0,60051.0,0.65163661]
[1723992365978,0.00325,60052.0,60051.0,0.601837]
[1723992366129,0.00325,60052.0,60051.0,0.67652216]
[1723992366340,0.00325,60052.0,60051.0,0.601837]
[1723992367318,0.00325,60052.0,60051.0,0.67652216]
[1723992367470,0.00325,60052.0,60051.0,0.601837]
[1723992368664,0.00325,60052.0,60051.0,0.65166747]
[1723992368875,0.00325,60052.0,60051.0,0.601837]
[1723992369071,0.00325,60052.0,60051.0,0.18539781]
[1723992369285,0.00325,60052.0,60051.0,0.18540839]
[1723992369927,0.00325,60052.0,60051.0,0.06884139]
[1723992370140,0.00325,60052.0,60051.0,0.019]
[1723992370141,0.20115,60052.0,60051.0,0.019]
[1723992370554,0.27737661,60052.0,60051.0,0.019]
[1723992371169,0.28748513,60052.0,60051.0,0.019]
[1723992371543,0.21125852,60052.0,60051.0,0.019]
[1723992372372,0.55465852,60052.0,60051.0,0.019]
[1723992372954,0.66925718,60052.0,60051.0,0.019]
[1723992373693,0.84549379,60052.0,60051.0,0.019]
[1723992375788,0.84649379,60052.0,60051.0,0.019]
[1723992376246,0.84849379,60052.0,60051.0,0.019]
[1723992376450,0.84549379,60052.0,60051.0,0.012]
[1723992376663,0.84549379,60052.0,60051.0,0.014]
[1723992377489,0.84549379,60052.0,60051.0,0.002]
[1723992378049,0.84549379,60052.0,60051.0,0.008]
[1723992379163,0.84649379,60052.0,60051.0,0.008]
[1723992379345,0.84549379,60052.0,60051.0,0.008]
[1723992380309,0.76479379,60052.0,60051.0,0.008]
[1723992380506,0.84549379,60052.0,60051.0,0.008]
[1723992381695,0.76479379,60052.0,60051.0,0.008]
[1723992381868,0.84549379,60052.0,60051.0,0.008]
[1723992386561,0.93334317,60052.0,60051.0,0.008]
[1723992386747,0.84549379,60052.0,60051.0,0.008]
[1723992387813,0.84849379,60052.0,60051.0,0.008]
[1723992388009,0.84549379,60052.0,60051.0,0.008]
[1723992388209,0.84749379,60052.0,60051.0,0.008]
[1723992388431,0.84849379,60052.0,60051.0,0.008]
[1723992388639,0.93634317,60052.0,60051.0,0.008]
[1723992389735,0.93634317,60052.0,60051.0,0.0089075]
[1723992389944,0.93434317,60052.0,60051.0,0.0089075]
[1723992390336,0.93634317,60052.0,60051.0,0.0089075]
[1723992390748,0.95634317,60052.0,60051.0,0.0089075]
[1723992391219,0.95834317,60052.0,60051.0,0.0089075]
[1723992391834,0.95834317,60052.0,60051.0,0.0069075]
[1723992392050,0.96134317,60052.0,60051.0,0.0069075]
[1723992392275,0.96134317,60052.0,60051.0,0.0019075]
[1723992392697,0.96434317,60052.0,60051.0,0.0019075]
[1723992392915,0.96434317,60052.0,60051.0,0.0029075]
[1723992392916,0.96234317,60052.0,60051.0,0.0029075]
[1723992393345,0.96434317,60052.0,60051.0,0.0029075]
[1723992393749,0.96534317,60052.0,60051.0,0.0029075]
[1723992394505,0.87749379,60052.0,60051.0,0.0029075]
[1723992397253,0.30819379,60052.0,60051.0,0.0029075]
[1723992400310,0.30819379,60052.0,60039.0,0.0009075]
[1723992400311,0.4478,60040.0,60039.0,0.0009075]
[1723992400522,0.72399941,60040.0,60039.0,0.0009075]
[1723992400728,1.01818735,60040.0,60039.0,0.0009075]
[1723992400936,1.01818735,60040.0,60027.0,0.0009075]
[1723992400937,0.0807,60028.0,60027.0,0.0009075]
[1723992401205,0.37486422,60028.0,60027.0,0.0009075]
[1723992402598,0.29416422,60028.0,60027.0,0.0009075]
[1723992402800,0.38855064,60028.0,60027.0,0.0059075]
[1723992403364,0.29716422,60028.0,60027.0,0.0059075]
[1723992403768,0.29716422,60028.0,60027.0,0.0009075]
[1723992404114,0.30016422,60028.0,60027.0,0.0019075]
[1723992404838,0.30816422,60028.0,60027.0,0.0019075]
[1723992405175,0.30916422,60028.0,60027.0,0.0019075]
[1723992405494,0.34783607,60028.0,60027.0,0.0019075]
[1723992406611,0.34483607,60028.0,60027.0,0.0019075]